[Event "Dutch Meesterklasse 2024-25"]
[Site "Netherlands"]
[Date "2024.11.23"]
[Round "4.8"]
[White "Bellahcene, Bilel"]
[Black "Geirnaert, Steven"]
[Result "0-1"]
[ECO "C77"]
[WhiteElo "2517"]
[BlackElo "2409"]
[Annotator "RC"]
[PlyCount "100"]
[EventDate "2024.09.21"]
[EventType "team-tourn"]
[EventCountry "NED"]
[SourceTitle "playchess.com"]
[Source "ChessBase"]
[SourceQuality "1"]
[TimeControl "40/5400+30:1800+30"]

1. e4 {[%emt 0:00:55]} e5 {[%emt 0:00:05]} 2. Nf3 {[%emt 0:00:22]} Nc6 {[%emt 0:00:04]} 3. Bb5 {[%emt 0:00:04]} a6 {[%emt 0:00:04]} 4. Ba4 {[%emt 0:00:04]} Nf6 {[%emt 0:00:03]} 5. d3 {[%emt 0:00:30]} b5 {[%emt 0:00:10]} 6. Bb3 {[%emt 0:00:02]} Bc5 {[%emt 0:00:06]} 7. Nc3 {[%emt 0:00:23]} d6 {[%emt 0:00:10]} 8. Nd5 {[%emt 0:06:21]} h6 {[%emt 0:00:07]} 9. c3 {[%emt 0:00:15]} Be6 {[%emt 0:00:05]} 10. Nxf6+ {[%emt 0:05:49]} Qxf6 {[%emt 0:02:15]} 11. O-O {[%emt 0:00:27]} O-O {[%emt 0:04:00]} 12. Be3 {[%emt 0:03:05]} Bb6 {[%emt 0:06:15]} 13. a4 {[%emt 0:03:23]} Rab8 {[%emt 0:03:44]} 14. Bxb6 {[%emt 0:17:35]} Rxb6 {[%emt 0:02:47]} 15. axb5 {[%emt 0:01:58]} axb5 {[%emt 0:00:24]} 16. Nd2 {[%emt 0:01:43]} Ne7 {[%emt 0:02:33]} 17. Bxe6 {[%emt 0:02:36]} Qxe6 {[%emt 0:01:48]} 18. Qb3 {[%emt 0:01:22]} Qxb3 {[%emt 0:13:44]} 19. Nxb3 {[%emt 0:02:16]} Nc6 {[%emt 0:02:06]} 20. Ra2 {[%emt 0:08:23]} f5 {[%emt 0:03:22]} 21. Rfa1 {[%emt 0:06:40]} fxe4 {[%emt 0:01:16]} 22. dxe4 {[%emt 0:00:01]} Rbb8 {[%emt 0:11:03]} 23. Ra6 {[%emt 0:02:29]} Nd8 {[%emt 0:00:42]} 24. Na5 {[%emt 0:01:27]} Kf7 {[%emt 0:10:37]} 25. Ra7 {[%emt 0:09:07]} Ne6 {[%emt 0:00:10]} 26. Nc6 {[%emt 0:00:58]} Rb6 {[%emt 0:00:17]} 27. Nb4 {[%emt 0:00:56]} Rfb8 {[%emt 0:01:05]} 28. h4 {[%emt 0:03:32]} Ke8 {[%emt 0:03:31]} 29. h5 {[%emt 0:00:58]} Kd7 {[%emt 0:00:38]} 30. Nd5 {[%emt 0:12:57]} R6b7 {[%emt 0:02:53]} 31. Rxb7 {[%emt 0:00:25]} Rxb7 {[%emt 0:00:06]} 32. Ra8 {[%emt 0:01:21]} c6 {[%emt 0:04:39]} 33. Nb4 {[%emt 0:01:26]} Nf4 {[%emt 0:04:14]} 34. Rg8 {[%emt 0:02:10]} Nxh5 {[%emt 0:01:49]} 35. Kh2 {[%emt 0:02:41]} c5 {[%emt 0:03:56]} 36. Nd5 {[%emt 0:00:01]} Ke6 {[%emt 0:00:17]} 37. Re8+ {[%emt 0:00:03]} Kf7 {[%emt 0:00:21]} 38. Rd8 {[%emt 0:00:37]} Nf6 {[%emt 0:00:58]} 39. Rxd6 {[%emt 0:02:01]} Nxe4 {[%emt 0:00:21]} 40. Rc6 {[%emt 0:00:01]} Nxf2 {[%emt 0:01:24]} 41. Rxc5 {[%emt 0:32:46]} Nd3 {[%emt 0:35:10]} 42. Rc6 {[%emt 0:00:00]} Nxb2 {[%emt 0:00:00]} 43. Kg3 {[%emt 0:00:00]} Nd3 {[%emt 0:00:00]} 44. Ne3 {[%emt 0:00:00]} b4 {[%emt 0:00:00]} 45. cxb4 {[%emt 0:00:00]} Rxb4 {[%emt 0:00:00]} 46. Nf5 {[%emt 0:00:00]} h5 {[%emt 0:00:00]} 47. Rc7+ {[%emt 0:00:00]} Kf6 {[%emt 0:00:00]} 48. Nd6 {[%emt 0:00:00]} Ke6 {[%emt 0:00:00]} 49. Ne8 {[%emt 0:00:00]} g6 {[%emt 0:00:00]} 50. Kf3 {[%emt 0:00:00]} Rb8 {[%emt 0:00:00]} 0-1

[Event "Dutch Meesterklasse 2024-25"]
[Site "Netherlands"]
[Date "2024.11.23"]
[Round "4.9"]
[White "Vandenbussche, Thibaut"]
[Black "Elgersma, Onno"]
[Result "0-1"]
[ECO "C02"]
[WhiteElo "2435"]
[BlackElo "2322"]
[Annotator "RC"]
[PlyCount "104"]
[EventDate "2024.09.21"]
[EventType "team-tourn"]
[EventCountry "NED"]
[SourceTitle "playchess.com"]
[Source "ChessBase"]
[SourceQuality "1"]
[TimeControl "40/5400+30:1800+30"]

1. e4 {[%emt 0:00:02]} e6 {[%emt 0:00:42]} 2. d4 {[%emt 0:00:05]} d5 {[%emt 0:00:10]} 3. e5 {[%emt 0:00:06]} c5 {[%emt 0:00:14]} 4. c3 {[%emt 0:00:02]} Nc6 {[%emt 0:00:15]} 5. Nf3 {[%emt 0:00:03]} Bd7 {[%emt 0:00:23]} 6. Be2 {[%emt 0:00:14]} Nge7 {[%emt 0:00:28]} 7. Na3 {[%emt 0:00:31]} Nf5 {[%emt 0:00:50]} 8. Nc2 {[%emt 0:00:09]} Be7 {[%emt 0:01:46]} 9. Bd3 {[%emt 0:01:55]} cxd4 {[%emt 0:03:32]} 10. cxd4 {[%emt 0:03:33]} O-O {[%emt 0:02:08]} 11. g4 {[%emt 0:02:55]} Nh4 {[%emt 0:03:41]} 12. Nxh4 {[%emt 0:00:08]} Bxh4 {[%emt 0:00:05]} 13. g5 {[%emt 0:00:07]} Bxg5 {[%emt 0:08:33]} 14. Qh5 {[%emt 0:01:49]} h6 {[%emt 0:00:34]} 15. Rg1 {[%emt 0:00:26]} Bxc1 {[%emt 0:07:15]} 16. Rxc1 {[%emt 0:00:03]} f5 {[%emt 0:00:26]} 17. Qxh6 {[%emt 0:05:04]} Rf7 {[%emt 0:04:01]} 18. Ke2 {[%emt 0:09:59]} Qb6 {[%emt 0:02:50]} 19. Qh4 {[%emt 0:08:03]} Rc8 {[%emt 0:04:32]} 20. Rg5 {[%emt 0:12:05]} Nxd4+ {[%emt 0:10:22]} 21. Nxd4 {[%emt 0:03:16]} Rxc1 {[%emt 0:00:10]} 22. Rh5 {[%emt 0:00:48]} Rf8 {[%emt 0:00:58]} 23. Rh8+ {[%emt 0:18:56]} Kf7 {[%emt 0:00:01]} 24. Qh5+ {[%emt 0:00:15]} Ke7 {[%emt 0:00:13]} 25. Qg5+ {[%emt 0:00:05]} Kf7 {[%emt 0:00:07]} 26. Rh7 {[%emt 0:01:25]} Rg8 {[%emt 0:01:32]} 27. Nb3 {[%emt 0:23:53]} Rcc8 {[%emt 0:03:26]} 28. Qf6+ {[%emt 0:01:22]} Ke8 {[%emt 0:00:05]} 29. Rxg7 {[%emt 0:00:08]} Rxg7 {[%emt 0:00:18]} 30. Qxg7 {[%emt 0:00:01]} Qb4 {[%emt 0:01:09]} 31. h4 {[%emt 0:05:36]} Qg4+ {[%emt 0:08:50]} 32. Qxg4 {[%emt 0:00:02]} fxg4 {[%emt 0:00:07]} 33. Ke3 {[%emt 0:00:42]} Ke7 {[%emt 0:01:01]} 34. h5 {[%emt 0:01:57]} Rh8 {[%emt 0:02:04]} 35. Bg6 {[%emt 0:00:03]} Be8 {[%emt 0:00:31]} 36. Kf4 {[%emt 0:01:20]} Bxg6 {[%emt 0:00:31]} 37. hxg6 {[%emt 0:00:05]} Rf8+ {[%emt 0:00:18]} 38. Kg3 {[%emt 0:00:41]} Rg8 {[%emt 0:00:12]} 39. Kxg4 {[%emt 0:01:21]} Rxg6+ {[%emt 0:00:05]} 40. Kf4 {[%emt 0:00:16]} Rg1 {[%emt 0:00:38]} 41. Nc5 {[%emt 0:03:16]} Re1 {[%emt 0:04:06]} 42. f3 {[%emt 0:01:46]} b6 {[%emt 0:00:22]} 43. Nd3 {[%emt 0:00:05]} Re2 {[%emt 0:00:04]} 44. a3 {[%emt 0:08:35]} Kd7 {[%emt 0:01:44]} 45. a4 {[%emt 0:01:54]} Ke7 {[%emt 0:01:52]} 46. b3 {[%emt 0:01:59]} d4 {[%emt 0:03:10]} 47. b4 {[%emt 0:05:43]} Re3 {[%emt 0:02:25]} 48. Nc1 {[%emt 0:00:09]} Rc3 {[%emt 0:01:12]} 49. Ne2 {[%emt 0:00:21]} Rc4 {[%emt 0:02:47]} 50. Ke4 {[%emt 0:00:17]} Rxb4 {[%emt 0:00:08]} 51. Nxd4 {[%emt 0:00:04]} Rxa4 {[%emt 0:00:06]} 52. Kd3 {[%emt 0:00:33]} Rxd4+ {[%emt 0:01:37]} 0-1

[Event "Dutch Meesterklasse 2024-25"]
[Site "Netherlands"]
[Date "2024.11.23"]
[Round "4.10"]
[White "Schoorl, Rob"]
[Black "Maerevoet, Sim"]
[Result "0-1"]
[ECO "A09"]
[WhiteElo "2300"]
[BlackElo "2418"]
[Annotator "RC"]
[PlyCount "62"]
[EventDate "2024.09.21"]
[EventType "team-tourn"]
[EventCountry "NED"]
[SourceTitle "playchess.com"]
[Source "ChessBase"]
[SourceQuality "1"]
[TimeControl "40/5400+30:1800+30"]

1. Nf3 {[%emt 0:00:04]} d5 {[%emt 0:00:10]} 2. c4 {[%emt 0:00:18]} d4 {[%emt 0:00:12]} 3. b4 {[%emt 0:00:17]} g5 {[%emt 0:01:01]} 4. h3 {[%emt 0:01:00]} h6 {[%emt 0:08:30]} 5. g3 {[%emt 0:02:46]} Bg7 {[%emt 0:00:50]} 6. d3 {[%emt 0:02:32]} e5 {[%emt 0:03:08]} 7. Nbd2 {[%emt 0:03:41]} Be6 {[%emt 0:07:56]} 8. Bg2 {[%emt 0:02:36]} Nd7 {[%emt 0:01:55]} 9. O-O {[%emt 0:09:05]} Ne7 {[%emt 0:04:21]} 10. a4 {[%emt 0:04:02]} Ng6 {[%emt 0:08:19]} 11. b5 {[%emt 0:06:08]} f5 {[%emt 0:04:00]} 12. Ba3 {[%emt 0:10:50]} h5 {[%emt 0:03:41]} 13. c5 {[%emt 0:13:21]} g4 {[%emt 0:01:31]} 14. hxg4 {[%emt 0:04:02]} hxg4 {[%emt 0:00:24]} 15. Nh2 {[%emt 0:00:10]} Nf4 {[%emt 0:10:24]} 16. Bxb7 {[%emt 0:14:56]} Rb8 {[%emt 0:06:53]} 17. e3 {[%emt 0:18:03]} Nh3+ {[%emt 0:13:31]} 18. Kg2 {[%emt 0:01:03]} Rxb7 {[%emt 0:00:14]} 19. c6 {[%emt 0:01:04]} Rb6 {[%emt 0:00:18]} 20. cxd7+ {[%emt 0:01:04]} Qxd7 {[%emt 0:00:12]} 21. e4 {[%emt 0:02:37]} f4 {[%emt 0:00:20]} 22. Rh1 {[%emt 0:00:43]} f3+ {[%emt 0:03:24]} 23. Kf1 {[%emt 0:00:02]} Bg8 {[%emt 0:01:09]} 24. Nb3 {[%emt 0:01:02]} Rbh6 {[%emt 0:05:53]} 25. Nc5 {[%emt 0:00:51]} Qf7 {[%emt 0:01:18]} 26. Qd2 {[%emt 0:00:18]} Nf4 {[%emt 0:01:39]} 27. gxf4 {[%emt 0:00:41]} Rxh2 {[%emt 0:00:07]} 28. Rg1 {[%emt 0:00:30]} Rh1 {[%emt 0:00:28]} 29. Na6 {[%emt 0:00:40]} Rxg1+ {[%emt 0:00:49]} 30. Kxg1 {[%emt 0:00:01]} Qh5 {[%emt 0:00:17]} 31. Nxc7+ {[%emt 0:00:10]} Kd7 {[%emt 0:00:15]} 0-1